bitfinex-derivatives/quotes_ETHF0:USTF0_20251204
["timestamp","ask_amount","ask_price","bid_price","bid_amount"]
[1764856447590,0.7704,3172.6,3172.5,1.2031]
[1764856447885,1.5392,3172.6,3172.5,1.9512]
[1764856448182,1.5392,3172.6,3172.5,1.36421889]
[1764856448376,1.5392,3172.6,3172.5,2.11231889]
[1764856448583,0.7704,3172.6,3172.5,2.11231889]
[1764856449281,41.2176,3173.0,3172.5,2.11231889]
[1764856449479,2.69144794,3172.9,3172.8,0.7582]
[1764856451383,2.69144794,3172.9,3172.8,1.5063]
[1764856451586,2.69144794,3172.9,3172.8,0.7582]
[1764856452488,2.34635024,3172.9,3172.8,0.7582]
[1764856453488,0.7704,3172.6,3172.5,2.11231889]
[1764856453689,1.5392,3172.6,3172.5,2.11231889]
[1764856453889,1.5392,3172.6,3172.5,1.36421889]
[1764856454280,1.5392,3172.6,3172.5,2.11231889]
[1764856454689,0.7704,3172.6,3172.5,2.11231889]
[1764856454987,1.5392,3173.0,3172.9,1.5063]
[1764856455488,0.7704,3173.0,3172.9,1.5063]
[1764856455690,1.5392,3173.0,3172.9,0.7582]
[1764856456286,1.5392,3173.0,3172.9,1.5063]
[1764856456784,0.00754594,3173.1,3173.0,1.9512]
[1764856457381,0.00754594,3173.1,3173.0,2.10876]
[1764856461003,1.15192756,3173.9,3173.0,2.10876]
[1764856461004,0.7704,3173.9,3173.8,1.5063]
[1764856461190,0.7704,3173.1,3173.0,1.2031]
[1764856461394,1.5392,3173.1,3173.0,1.9512]
[1764856461799,0.7704,3173.1,3173.0,1.9512]
[1764856461999,0.77344325,3173.1,3173.0,1.9512]
[1764856462196,0.77344325,3173.1,3173.0,2.10876]
[1764856463299,1.54224325,3173.1,3173.0,2.10876]
[1764856466703,1.54224325,3173.1,3172.4,0.16231925]
[1764856467001,0.7704,3172.6,3172.5,1.95472889]
[1764856467400,0.7704,3172.7,3172.6,1.66388]
[1764856469404,1.5392,3172.7,3172.6,1.66388]
[1764856469710,1.5392,3172.7,3172.6,0.91578]
[1764856470511,1.5392,3172.6,3172.5,0.00352889]
[1764856473208,1.5392,3172.6,3172.5,0.76172889]
[1764856473512,1.88408173,3172.6,3172.5,0.00352889]
[1764856474306,2.69101265,3172.6,3172.5,0.00352889]
[1764856474710,1.9317,3172.5,3172.4,0.00472925]
[1764856474910,1.4464,3172.2,3172.1,0.15761]
[1764856475316,1.4464,3172.2,3172.1,0.87921]
[1764856475517,1.4464,3172.2,3172.1,0.15761]
[1764856475814,1.4464,3172.2,3172.1,0.16016816]
[1764856476615,1.4464,3172.2,3172.1,0.88176816]
[1764856477805,1.4464,3172.2,3172.1,0.16016816]
[1764856479026,0.7132,3172.2,3172.1,1.64106816]
[1764856479216,1.45112925,3172.5,3172.4,1.4809]
[1764856480311,0.00472925,3172.5,3172.4,1.63849]
[1764856480514,0.00304325,3173.1,3173.0,2.07476]
[1764856482618,0.71624325,3173.1,3173.0,2.07476]
[1764856483125,0.00304325,3173.1,3173.0,2.07476]
[1764856483519,0.71624325,3173.1,3173.0,2.07476]
[1764856484817,1.44944325,3173.1,3173.0,2.07476]
[1764856487717,1.44944325,3173.1,3173.0,1.31546]
[1764856487920,1.44944325,3173.1,3173.0,0.15756]
[1764856488324,1.44944325,3173.1,3173.0,0.88786]
[1764856488824,0.00304325,3173.1,3173.0,2.08946]
[1764856495530,1.15150898,3173.9,3173.0,2.08946]
[1764856495531,40.8,3174.0,3173.9,1.4803]
[1764856495728,0.7567,3174.0,3173.9,1.4803]
[1764856496124,1.4766,3174.0,3173.9,1.4803]
[1764856496525,1.47938251,3174.0,3173.9,1.4803]
[1764856497130,0.75948251,3174.0,3173.9,1.4803]
[1764856497334,0.00278251,3174.0,3173.9,1.4803]
[1764856497521,0.75948251,3174.0,3173.9,1.4803]
[1764856497721,0.00278251,3174.0,3173.9,1.63782]
[1764856501129,1.47938251,3174.0,3173.9,1.63782]
[1764856501333,1.47938251,3174.0,3173.9,0.15752]
[1764856501638,1.47938251,3174.0,3173.6,0.00472925]
[1764856501639,1.4766,3173.7,3173.6,1.48502925]
[1764856501828,1.4766,3173.7,3173.6,0.73502925]
[1764856502132,1.4766,3173.7,3173.6,0.00472925]
[1764856506440,1.4121,3173.0,3172.9,1.62147]
[1764856506640,0.2551,3173.5,3173.0,0.4544]
[1764856506936,0.7052,3173.6,3173.5,1.2064]
[1764856507240,1.4121,3173.4,3173.3,0.15754]
[1764856507742,1.4121,3173.1,3173.0,1.92302925]
[1764856508129,0.7052,3173.1,3173.0,1.92302925]
[1764856510143,1.4121,3173.5,3173.4,0.752]
[1764856510344,2.21968333,3173.5,3173.4,0.752]
[1764856511645,0.7052,3173.5,3173.4,1.4639]
[1764856512941,0.00472925,3173.7,3173.6,1.4639]
[1764856513647,0.00472925,3173.7,3173.6,1.62143]
[1764856513847,0.00278251,3174.0,3173.9,1.62142]
[1764856514750,0.4229,3175.0,3174.5,1.9183]
[1764856514948,2.21923722,3174.9,3174.8,1.4639]
[1764856515144,1.4121,3174.6,3174.5,1.92302925]
[1764856515339,1.4121,3174.6,3174.5,0.00472925]
[1764856515749,2.22236559,3174.6,3174.5,0.75966517]
[1764856515948,1.41560903,3174.6,3174.5,0.75966517]
[1764856517058,1.41560903,3174.6,3174.5,0.00766517]
[1764856517258,1.41560903,3174.6,3174.5,0.75966517]
[1764856517563,1.41560903,3174.6,3174.5,0.00766517]
[1764856520666,1.41560903,3174.6,3173.5,0.4544]
[1764856520667,2.53476432,3174.5,3173.5,0.61194]
[1764856520862,2.53476432,3174.5,3173.6,0.15753]
[1764856521259,1.4121,3173.7,3173.6,0.15753]
[1764856521454,1.4121,3173.6,3173.5,1.9183]
[1764856521760,1.4121,3173.6,3173.5,1.92069381]
[1764856521958,0.44232925,3174.0,3173.5,1.92069381]
[1764856522162,1.41682925,3174.0,3173.5,0.45679381]
[1764856522561,0.7052,3173.6,3173.5,1.92069381]
[1764856524261,1.4121,3173.6,3173.5,0.00239381]
[1764856524462,1.4121,3173.6,3173.5,0.75439381]
[1764856524657,1.4121,3173.6,3173.5,0.00239381]
[1764856525261,2.2186367,3173.6,3173.5,0.00239381]
[1764856525562,1.4121,3173.4,3173.3,0.00472925]
[1764856525762,2.86855976,3173.4,3173.3,0.00472925]
[1764856526361,2.86855976,3173.4,3173.3,0.00734057]
[1764856528366,1.4121,3173.4,3173.3,0.00734057]
[1764856529159,1.4121,3173.4,3173.3,4.057e-05]
[1764856529364,0.7052,3172.6,3172.5,1.9183]
[1764856530060,1.4121,3172.5,3172.4,0.90959]
[1764856530266,1.4121,3172.5,3172.4,0.16119581]
[1764856530461,1.4121,3172.5,3172.4,0.91319581]
[1764856530665,1.4121,3172.5,3172.4,1.62509581]
[1764856532274,1.4121,3172.5,3172.4,0.16119581]
[1764856532275,1.8497,3172.5,3172.4,0.16119581]
[1764856532459,0.7052,3172.5,3172.4,1.62509581]
[1764856533171,0.4183,3173.0,3172.4,1.62509581]
[1764856533464,0.09345067,4077.2,3173.0,0.4544]
[1764856533465,1.69551041,3173.9,3173.0,0.4544]
[1764856533671,0.7052,3173.1,3173.0,1.9149]
[1764856533862,1.4245,3173.1,3173.0,1.9149]
[1764856534663,0.7052,3173.1,3173.0,1.9149]
[1764856534864,41.0551,3173.5,3173.0,1.9149]
[1764856535067,1.4224,3173.5,3173.4,1.4228]
[1764856535374,1.4224,3173.5,3173.0,0.4544]
[1764856535877,1.4224,3173.5,3173.4,0.7143]
[1764856538376,1.4224,3173.5,3173.4,1.4228]
[1764856538875,1.42712925,3174.0,3173.9,1.4228]
[1764856539183,0.7031,3173.6,3173.5,2.01634]
[1764856539976,1.42712925,3174.0,3173.9,1.4228]
[1764856540273,1.42712925,3174.0,3173.9,0.7143]
[1764856541679,1.42712925,3174.0,3173.9,1.4228]
[1764856542080,0.00472925,3174.0,3173.9,1.4228]
[1764856542278,0.72152925,3174.0,3173.9,1.4228]
[1764856543282,1.43362925,3174.0,3173.9,1.4228]
[1764856543476,0.00472925,3174.0,3173.9,1.4228]
[1764856543974,0.72152925,3174.0,3173.9,1.4228]
[1764856544181,1.43362925,3174.0,3173.9,1.4228]
[1764856544377,0.72152925,3174.0,3173.9,1.4228]
[1764856544579,0.00472925,3174.0,3173.9,1.4228]
[1764856545775,0.00472925,3174.0,3173.9,1.58032]
[1764856546079,0.4183,3175.0,3173.9,1.58032]
[1764856546283,1.43240903,3174.6,3174.5,1.9516]
[1764856546683,0.72030903,3174.6,3174.5,1.9516]
[1764856547389,1.43240903,3174.6,3174.5,1.9516]
[1764856548083,0.72030903,3174.6,3174.5,1.9516]
[1764856548385,0.00350903,3174.6,3174.5,1.9516]
[1764856548887,1.43240903,3174.6,3174.5,1.9516]
[1764856549477,0.72030903,3174.6,3174.5,1.9516]
[1764856549786,1.43240903,3174.6,3174.5,1.9516]
[1764856552181,0.00350903,3174.6,3174.5,1.9516]
[1764856552478,0.72152925,3174.9,3174.8,1.4907]
[1764856552684,1.4289,3175.5,3175.4,0.7388]
[1764856552983,2.57684207,3175.5,3175.0,0.4609]
[1764856553181,1.4289,3175.6,3175.5,1.9516]
[1764856553387,1.4289,3175.6,3175.5,0.74107772]
[1764856553584,1.4289,3175.6,3175.5,0.00227772]
[1764856554389,1.4289,3175.6,3175.5,0.74107772]
[1764856554583,40.8,3175.9,3175.8,0.7388]
[1764856554888,1.4289,3175.9,3175.8,0.7388]
[1764856555083,0.00409447,3176.0,3175.5,0.46317772]
[1764856555386,0.00409447,3176.0,3175.9,1.4907]
[1764856555387,40.80409447,3176.0,3175.9,1.4907]
[1764856555683,40.80409447,3176.0,3175.5,0.46317772]
[1764856555684,0.7168,3175.6,3175.5,1.20197772]
[1764856555989,1.4289,3175.6,3175.5,1.95387772]
[1764856556190,0.7168,3175.6,3175.5,1.95387772]
[1764856556789,0.00409447,3176.0,3175.5,1.95387772]
[1764856557493,1.43299447,3176.0,3175.9,0.7388]
[1764856558391,0.72089447,3176.0,3175.9,1.4907]
[1764856558986,1.43299447,3176.0,3175.9,0.7388]
[1764856559392,1.43299447,3176.0,3175.9,1.4907]
[1764856560187,0.00409447,3176.0,3175.9,1.4907]
[1764856560386,2.33176709,3176.9,3175.5,0.46317772]
[1764856560387,2.23011956,3176.8,3176.7,0.7388]
[1764856560583,1.4289,3176.6,3176.5,1.1997]
[1764856560787,1.8685,3176.5,3176.4,0.00472166]
[1764856561386,1.8709458,3176.5,3176.4,0.00472166]
[1764856561592,0.7192458,3176.5,3176.4,0.74352166]
[1764856561786,1.4313458,3176.5,3176.4,1.49542166]
[1764856562490,0.0024458,3176.5,3176.4,1.49542166]
[1764856563093,1.63220806,3177.5,3177.4,0.7388]
[1764856563390,0.7168,3177.1,3177.0,1.1997]
[1764856563692,1.4289,3177.1,3177.0,1.9516]
[1764856563889,40.8,3177.4,3177.3,0.7035]
[1764856564194,1.44851429,3177.4,3177.3,0.7035]
[1764856564587,1.44851429,3177.4,3177.3,1.4172]
[1764856564795,6.54900687,3178.6,3177.3,1.4172]
[1764856565093,41.94221413,3178.4,3177.3,1.4172]
[1764856565294,0.7303,3177.4,3177.3,1.4172]
[1764856565497,0.43,3178.0,3177.3,1.4172]
[1764856565888,0.43235295,3178.0,3177.3,1.4172]
[1764856566287,0.00235295,3178.0,3177.3,1.4172]
[1764856566487,0.00235295,3178.0,3177.1,0.15736]
[1764856566488,1.44685295,3178.0,3177.9,0.7035]
[1764856566694,1.44685295,3178.0,3177.9,0.00377391]
[1764856567396,1.87685295,3178.0,3177.9,0.00377391]
[1764856570690,1.44685295,3178.0,3177.9,0.70727391]
[1764856571394,1.87685295,3178.0,3177.9,0.00377391]
[1764856572389,2.67555687,3178.0,3177.9,0.00377391]
[1764856573389,1.44685295,3178.0,3177.9,1.42097391]
[1764856573692,1.44685295,3178.0,3177.9,0.70727391]
[1764856573892,1.44685295,3178.0,3177.9,0.00377391]
[1764856574100,1.87685295,3178.0,3177.9,0.00377391]
[1764856574292,2.67596378,3178.0,3177.9,0.00377391]
[1764856574896,0.7303,3177.1,3177.0,1.8781]
[1764856575396,1.4445,3177.1,3177.0,1.8781]
[1764856575592,0.7303,3176.6,3176.4,0.00472166]
[1764856575793,0.7303,3176.6,3176.5,1.88175629]
[1764856576188,1.4445,3176.6,3176.5,1.88175629]
[1764856576399,1.4445,3176.6,3176.5,1.16805629]
[1764856576599,1.4445,3176.6,3176.5,1.88175629]
[1764856576799,0.7303,3176.6,3176.5,1.88175629]
[1764856578393,0.7303,3176.6,3176.5,1.85965629]
[1764856578596,40.8,3177.4,3176.5,1.85965629]
[1764856578799,1.14351897,3177.3,3176.5,1.85965629]
[1764856578998,0.34257544,3177.2,3176.5,1.85965629]
[1764856579200,1.14351897,3177.2,3176.5,1.85965629]
[1764856579396,1.14351897,3177.1,3176.5,1.85965629]
[1764856579597,0.80094353,3177.0,3176.5,1.85965629]
[1764856579798,2.24544353,3176.9,3176.8,0.7035]
[1764856580400,2.24544353,3176.9,3176.5,0.44245629]
[1764856580598,1.4445,3176.6,3176.5,1.85965629]
[1764856581203,1.53099848,3176.6,3176.5,1.85965629]
[1764856582894,2.24519848,3176.6,3176.5,1.85965629]
[1764856583100,2.24519848,3176.6,3176.5,0.00365629]
[1764856584202,2.24519848,3176.6,3176.5,0.70715629]
[1764856584391,2.58890783,3176.6,3176.5,0.00365629]
[1764856585298,2.58890783,3176.6,3176.5,1.856]
[1764856585503,1.87470783,3176.6,3176.5,1.856]
[1764856585703,2.58890783,3176.6,3176.5,1.856]
[1764856586004,1.87470783,3176.6,3176.5,1.856]
[1764856586298,1.53099848,3176.6,3176.5,1.85872582]
[1764856586507,2.24519848,3176.6,3176.5,1.14502582]
[1764856586893,2.24519848,3176.6,3176.5,1.85872582]
[1764856587398,2.58925967,3176.6,3176.5,0.70622582]
[1764856587599,2.58925967,3176.6,3176.5,0.00272582]
[1764856589008,4.28477008,3176.6,3176.5,0.00272582]
[1764856589796,2.58925967,3176.6,3176.5,0.00272582]
[1764856590002,2.58925967,3176.6,3176.5,0.70622582]
[1764856590396,1.87505967,3176.6,3176.5,1.85872582]
[1764856590704,2.58925967,3176.6,3176.5,1.85872582]
[1764856591704,2.58925967,3176.6,3176.5,0.00272582]
[1764856591904,1.78856119,3176.6,3176.5,0.00272582]
[1764856592106,2.59208189,3176.6,3176.5,0.00272582]
[1764856593599,1.8745,3176.5,3176.4,0.00472166]
[1764856593801,3.02208189,3176.5,3176.4,0.00472166]
[1764856594398,1.5058,3175.9,3175.8,0.7035]
[1764856594707,2.30917646,3175.9,3175.8,0.71589254]
[1764856595301,1.5058,3175.9,3175.8,0.71589254]
[1764856595896,1.5058,3175.9,3175.8,1.43449254]
[1764856596097,0.15738,3176.6,3175.8,1.43449254]
[1764856596299,1.57357525,3176.5,3176.4,1.4316]
[1764856596510,1.91780945,3176.5,3176.4,1.4316]
[1764856596904,2.69330945,3176.5,3176.0,0.465]
[1764856597101,2.69330945,3176.4,3176.3,0.713]
[1764856597307,2.34907525,3176.4,3176.3,1.4316]
[1764856597812,1.57357525,3176.4,3176.3,1.4316]
[1764856600505,0.7702,3176.1,3176.0,1.178]
[1764856600709,1.5457,3176.1,3176.0,1.8966]
[1764856600909,0.7702,3176.1,3176.0,1.8966]
[1764856601110,0.00469635,3176.8,3176.0,1.8966]
[1764856601310,0.80408178,3176.7,3176.0,1.8966]
[1764856601507,0.34457058,3176.6,3176.0,1.8966]
[1764856602713,0.7231,3176.1,3176.0,1.8966]
[1764856603105,0.00469635,3176.8,3176.0,1.8966]
[1764856603313,0.8047143,3176.7,3176.0,1.8966]
[1764856603611,0.34484136,3176.6,3176.0,1.8966]
[1764856603802,1.4421,3176.1,3176.0,1.8966]
[1764856604212,1.4421,3176.1,3176.0,0.713]
[1764856604408,1.4421,3176.1,3175.9,0.15742]
[1764856604409,1.4421,3175.9,3175.8,0.76959254]
[1764856605008,2.59255744,3175.9,3175.8,0.00289254]
[1764856605507,1.4421,3175.6,3175.5,0.00472166]
[1764856605706,0.7231,3175.1,3175.0,1.909]
[1764856606314,43.13176709,3175.9,3175.0,1.909]
[1764856606510,1.15036138,3175.8,3175.0,1.909]
[1764856606704,1.4421,3175.1,3175.0,0.00228372]
[1764856606913,43.13483081,3175.9,3175.0,1.89978372]
[1764856607106,1.15036253,3175.8,3175.0,1.89978372]
[1764856607306,0.34507765,3175.7,3175.0,1.89978372]
[1764856607815,1.4421,3175.1,3175.0,1.89978372]
[1764856608008,1.4421,3175.1,3175.0,0.00228372]
[1764856609711,2.59088543,3175.1,3175.0,0.00228372]
[1764856610210,2.59088543,3175.1,3174.7,0.00472166]
[1764856610211,0.80420405,3175.1,3174.7,0.00472166]
[1764856610513,1.4421,3174.8,3174.7,0.00472166]
[1764856610905,1.4421,3174.8,3174.7,0.77142166]
[1764856611101,1.4421,3174.8,3174.7,0.00472166]
[1764856611307,2.24493939,3174.8,3174.7,0.00775229]
[1764856611708,2.24493939,3174.8,3174.0,0.4273]
[1764856612010,1.4421,3174.8,3174.0,0.4273]
[1764856612714,40.8,3174.7,3174.1,0.00472166]
[1764856612923,0.7231,3174.2,3174.1,1.47492166]
[1764856613110,1.4421,3174.2,3174.1,1.47492166]
[1764856613810,1.4421,3174.2,3174.1,0.00472166]
[1764856614214,1.4421,3174.2,3174.1,0.77142166]
[1764856614513,40.8,3174.7,3174.6,1.4702]
[1764856615216,1.4421,3174.7,3174.6,1.4702]
[1764856618215,42.89622381,3175.0,3174.9,0.7667]
[1764856619418,42.89622381,3175.0,3174.5,0.4273]
[1764856619719,0.7231,3174.6,3174.5,1.8975]
[1764856620219,1.4421,3174.6,3174.5,1.8975]
[1764856620617,0.7231,3174.2,3174.1,0.77142166]
[1764856620816,1.4421,3174.2,3174.1,1.47492166]
[1764856621008,1.4421,3174.2,3174.1,0.77142166]
[1764856621211,2.09622381,3174.6,3174.1,1.47492166]
[1764856621619,3.53832381,3174.6,3174.5,1.4702]
[1764856621921,3.53832381,3174.6,3174.1,0.00472166]
[1764856622418,1.4421,3174.2,3174.1,1.47492166]
[1764856623719,1.4421,3174.2,3174.1,0.77142166]
[1764856624020,0.7231,3174.2,3174.1,1.49952166]
[1764856624618,40.8,3174.5,3174.4,1.4654]
[1764856624817,2.10094547,3175.1,3175.0,1.8965]
[1764856624818,0.00472166,3175.1,3175.0,1.8965]
[1764856625524,0.70562166,3175.1,3175.0,1.8965]
[1764856625719,0.00472166,3175.1,3175.0,1.8965]
[1764856625921,0.00306372,3175.9,3175.0,2.05396]
[1764856626116,1.76634002,3175.9,3175.8,0.7373]
[1764856626435,0.7009,3175.6,3175.5,1.8965]
[1764856627325,1.4199,3174.6,3174.1,0.00472166]
[1764856627528,2.09622381,3174.6,3174.1,1.47012166]
[1764856628025,0.7009,3174.6,3174.5,1.8965]
[1764856628223,3.51612381,3175.0,3174.9,0.7373]
[1764856628428,4.66122547,3175.0,3174.5,0.4311]
[1764856628726,0.7009,3174.6,3174.5,1.8965]
[1764856629522,1.4199,3174.6,3174.1,0.00472166]
[1764856629720,0.7009,3174.2,3174.1,1.47012166]
[1764856629926,1.4199,3174.2,3174.1,0.74202166]
[1764856630226,0.7009,3174.2,3174.1,1.47012166]
[1764856631929,3.51612381,3174.2,3174.1,0.00472166]
[1764856632125,1.4199,3174.2,3174.1,0.00472166]
[1764856634234,2.22377031,3174.2,3174.1,0.00472166]
[1764856636127,2.56868523,3174.2,3174.1,0.74202166]
[1764856638123,2.56868523,3174.2,3174.1,0.00472166]
[1764856638736,4.66490904,3174.2,3174.1,0.00472166]
[1764856640431,4.66490904,3174.2,3174.0,0.00221487]
[1764856640633,2.56868523,3174.1,3174.0,1e-08]
[1764856641636,2.56868523,3174.1,3174.0,1.46540001]
[1764856641833,1.14878523,3174.1,3174.0,1e-08]
[1764856643636,2.56868523,3174.1,3174.0,0.73730001]
[1764856644334,3.32426285,3174.1,3174.0,1e-08]
[1764856644534,2.60526285,3174.1,3174.0,1e-08]
[1764856645041,2.60526285,3174.1,3173.7,0.00472166]
[1764856645042,1.4199,3173.8,3173.7,0.00472166]
[1764856645243,4.02516285,3173.8,3173.7,0.00472166]
[1764856645437,44.82516285,3173.8,3173.7,0.00472166]
[1764856645946,43.40526285,3173.8,3173.7,1.47342435]
[1764856646542,41.94878523,3173.8,3173.7,1.47342435]
[1764856647245,41.60387031,3173.8,3173.7,1.47342435]
[1764856647446,41.94866885,3173.8,3173.7,0.74532435]
[1764856650339,41.94862324,3173.8,3173.7,0.74532435]
[1764856650546,41.94862324,3173.8,3173.7,1.47342435]
[1764856650742,41.94862324,3173.8,3173.7,0.74532435]
[1764856651438,41.60387031,3173.8,3173.7,0.74532435]
[1764856651635,41.60387031,3173.8,3173.7,1.47342435]
[1764856651840,0.70562166,3174.1,3174.0,1.8965]
[1764856652042,2.22845644,3174.1,3174.0,1.8965]
[1764856652444,2.57315146,3174.1,3174.0,1.8965]
[1764856653145,2.22845644,3174.1,3174.0,1.8965]
[1764856653546,1.42462166,3174.1,3174.0,1.8965]
[1764856653741,0.00472166,3174.1,3174.0,1.8965]
[1764856657952,1.69551041,3175.3,3174.1,0.1575]
[1764856658144,2.61110777,3175.1,3175.0,1.8966]
[1764856658848,3.79281853,3175.8,3175.0,1.8966]
[1764856659046,1.8919623,3175.7,3175.6,1.4706]
[1764856659249,2.6153623,3175.7,3175.6,1.4706]
[1764856659649,2.6153623,3175.7,3175.6,0.7051]
[1764856659851,2.6153623,3175.7,3175.6,1.4706]
[1764856660554,1.46542166,3175.7,3175.6,1.4706]
[1764856661152,1.4607,3175.4,3175.3,0.00472166]
[1764856661356,1.4607,3175.4,3175.3,1.47532166]
[1764856662558,0.00472166,3175.7,3175.6,1.4706]
[1764856662559,1.46542166,3175.7,3175.6,1.4706]
[1764856663559,0.00472166,3175.7,3175.6,1.4706]
[1764856663960,0.74682166,3175.7,3175.6,1.4706]
[1764856664562,0.00472166,3175.7,3175.6,1.4706]
[1764856664960,1.47242166,3175.7,3175.6,1.4598]
[1764856665367,1.4677,3175.4,3175.3,1.46392166]
[1764856666251,1.4677,3175.4,3175.3,0.00472166]
[1764856667160,2.33770812,3175.5,3174.5,1.8852]
[1764856667161,0.7421,3174.6,3174.5,1.8852]
[1764856667365,1.4677,3174.6,3173.7,0.16082269]
[1764856668163,1.4677,3174.6,3174.0,0.43582166]
[1764856668359,1.4677,3174.6,3174.5,0.7045]
[1764856668760,1.4677,3174.6,3174.0,0.43582166]
[1764856670768,1.4677,3174.6,3174.5,1.4592]
[1764856671069,1.4677,3174.6,3174.0,0.43582166]
[1764856671271,1.4677,3174.6,3174.5,1.9205]
[1764856672766,40.8,3174.8,3174.5,1.9205]
[1764856672961,40.8,3174.8,3174.7,1.4592]
[1764856673567,1.4677,3174.8,3174.7,1.4592]
[1764856674271,40.8,3175.2,3174.5,0.4613]
[1764856674272,40.8,3175.2,3175.1,1.4592]
[1764856674576,1.4677,3175.2,3175.1,1.4592]
[1764856674769,1.4677,3175.2,3175.1,0.7045]
[1764856678366,1.4677,3175.1,3175.0,0.7045]
[1764856678768,1.4677,3175.1,3174.5,0.4613]
[1764856679676,1.4677,3175.1,3175.0,1.9205]
[1764856680078,1.4677,3175.1,3174.5,0.4613]
[1764856680373,0.7421,3174.6,3174.5,1.9205]
[1764856680770,0.7421,3174.1,3174.0,1.89502166]
[1764856681168,1.4677,3174.1,3174.0,0.00472166]
[1764856681367,1.4677,3173.8,3173.7,0.70780269]
[1764856681568,2.88689588,3173.8,3173.7,1.46250269]
[1764856682272,2.88689588,3173.8,3173.7,0.70780269]
[1764856682572,1.4677,3173.8,3173.7,0.70780269]
[1764856682964,1.4677,3173.8,3173.7,1.46250269]
[1764856683173,1.4677,3173.8,3173.7,0.70780269]
[1764856683663,40.80472166,3174.1,3174.0,0.7362]
[1764856683871,1.4706,3173.8,3173.7,1.46910269]
[1764856684066,1.4706,3173.8,3173.7,0.00330269]
[1764856684261,1.4706,3173.8,3173.4,0.00472166]
[1764856684262,1.4706,3173.5,3173.4,0.74092166]
[1764856684465,1.4706,3173.5,3173.4,1.47052166]
[1764856685277,1.47414896,3173.5,3173.4,1.47315429]
[1764856685468,0.70724896,3173.5,3173.4,1.47315429]
[1764856685673,0.00354896,3173.5,3173.4,1.47315429]
[1764856685874,1.47414896,3173.5,3173.4,1.47315429]
[1764856686275,1.47414896,3173.5,3173.4,0.00735429]
[1764856686576,1.71454896,3173.5,3173.4,0.00735429]
[1764856688374,4.04914021,3173.5,3172.3,0.15759]
[1764856688681,0.7037,3172.6,3172.5,1.9271]
[1764856689474,1.4706,3172.6,3172.5,1.92975119]
[1764856689777,1.4706,3172.6,3172.5,0.73885119]
[1764856689981,0.7037,3172.6,3172.5,1.92385119]
[1764856691571,1.4706,3172.6,3172.5,1.92385119]
[1764856692683,1.4706,3172.6,3172.5,0.00265119]
[1764856693180,1.4706,3172.6,3172.5,0.73885119]
[1764856693384,1.4706,3172.6,3172.5,1.92385119]
[1764856693585,40.8,3172.9,3172.8,1.4658]
[1764856693885,2.57854021,3173.5,3172.8,1.4658]
[1764856694083,1.4706,3172.9,3172.8,1.4658]
[1764856695186,40.8,3173.4,3172.5,2.08144119]
[1764856695483,0.7037,3172.6,3172.5,2.08144119]
[1764856695685,40.8,3173.4,3172.5,2.08144119]
[1764856698296,1.4706,3172.6,3172.5,2.08144119]
[1764856698503,0.7037,3172.6,3172.5,2.08144119]
[1764856699098,1.4706,3172.6,3172.5,2.08144119]
[1764856699297,1.4706,3172.6,3172.5,1.35184119]
[1764856699498,1.4706,3172.6,3172.5,2.08144119]
[1764856699893,40.8,3173.4,3172.6,0.15758]
[1764856700200,1.4706,3173.1,3173.0,1.9212]
[1764856701090,1.4706,3173.1,3173.0,0.7362]
[1764856702202,43.37854021,3173.5,3172.6,1.62338]
[1764856702399,0.80036377,3173.4,3172.6,1.62338]
[1764856702796,0.80036377,3173.4,3173.3,1.4658]
[1764856702797,1.4706,3173.4,3173.3,1.4658]
[1764856703098,41.04394896,3173.5,3173.0,0.4554]
[1764856703099,0.7037,3173.1,3173.0,1.9212]
[1764856703799,1.4706,3173.1,3173.0,1.9212]
[1764856704803,1.4706,3173.1,3173.0,1.1916]
[1764856705002,1.4706,3172.8,3172.7,1.4658]
[1764856706102,1.4706,3172.6,3172.5,1.92385119]
[1764856706305,0.7037,3172.6,3172.5,1.92385119]
[1764856707196,1.4706,3172.6,3172.5,1.19425119]
[1764856707397,1.4706,3172.6,3172.5,0.73885119]
[1764856707800,1.4706,3172.6,3172.5,1.92385119]
[1764856708706,1.4706,3172.6,3172.5,0.00265119]
[1764856709401,1.4706,3172.3,3172.2,0.00472166]
[1764856710095,2.27435977,3172.3,3171.5,0.61303]
[1764856710298,1.4706,3172.3,3171.5,0.61539761]
[1764856711191,1.47532166,3172.2,3172.1,1.4658]
[1764856711602,1.47532166,3172.2,3172.1,0.7362]
[1764856711902,1.47532166,3172.2,3172.1,1.4658]
[1764856712199,0.70842166,3172.2,3172.1,1.4658]
[1764856712404,0.00472166,3172.2,3172.1,1.4658]
[1764856713699,0.70842166,3172.2,3172.1,1.4658]
[1764856714197,1.4732,3172.1,3172.0,1.2315]
[1764856714499,1.4732,3172.1,3172.0,0.7761]
[1764856714804,1.4732,3172.1,3172.0,1.9602]
[1764856715202,1.4732,3172.1,3172.0,0.7761]
[1764856716105,1.4732,3172.1,3172.0,1.9602]
[1764856716308,0.7131,3172.1,3172.0,1.9602]
[1764856716509,1.4732,3172.1,3172.0,1.9602]
[1764856717207,1.4732,3172.1,3172.0,0.7761]
[1764856717406,0.7131,3171.7,3171.6,1.53667307]
[1764856717899,0.00472166,3172.2,3171.6,1.53667307]
[1764856718503,1.15436294,3172.2,3171.6,1.53667307]
[1764856718698,0.80443901,3172.1,3171.6,1.53667307]
[1764856718899,0.00472166,3172.2,3172.1,0.7761]
[1764856718900,1.47792166,3172.2,3172.1,0.7761]
[1764856719098,2.62784496,3172.2,3172.1,1.5335]
[1764856719509,2.62784496,3172.2,3172.1,0.7761]
[1764856719808,1.4732,3172.1,3172.0,0.7761]
[1764856720010,2.6231233,3172.1,3172.0,0.7761]
[1764856720511,0.7131,3171.7,3171.6,1.53667307]
[1764856721210,1.4732,3171.7,3171.6,1.53667307]
[1764856721408,0.00472166,3172.2,3171.6,1.53667307]
[1764856721409,0.00472166,3172.2,3172.1,1.5335]
[1764856721610,0.71782166,3172.2,3172.1,1.5335]
[1764856721909,1.52214647,3172.2,3172.1,1.5335]
[1764856722407,0.00472166,3172.2,3172.1,1.5335]
[1764856723905,0.00472166,3172.2,3172.1,1.69111]
[1764856733217,2.88936854,3172.2,3172.1,1.69111]
[1764856733521,2.88936854,3172.2,3172.1,0.7761]
[1764856734020,2.88936854,3172.2,3172.1,1.5286]